fUSD/lending_fUSD_20250308
["ID","MTS","AMOUNT","RATE_DAILY","PERIOD"]
[355632443,1741414274565,-2801.84,9.041e-05,2]
[355632444,1741414274582,-500.0,9.041e-05,2]
[355632445,1741414274598,-500.0,9.041e-05,2]
[355632446,1741414274614,-2398.19,9.041e-05,2]
[355632447,1741414274629,-500.0,9.041e-05,2]
[355632448,1741414274645,-1257.17,9.041e-05,2]
[355632449,1741414274661,-1124.84,9.041e-05,2]
[355632450,1741414274676,-1494.7,9.041e-05,2]
[355632451,1741414274692,-1679.02,9.041e-05,2]
[355632452,1741414274708,-536.04,9.041e-05,2]
[355632453,1741414274724,-1620.43,9.041e-05,2]
[355632454,1741414274743,-941.43,9.041e-05,2]
[355632455,1741414274758,-842.48,9.041e-05,2]
[355632456,1741414274775,-500.0,9.041e-05,2]
[355632457,1741414274792,-500.0,9.041e-05,2]
[355632458,1741414274808,-1710.6,9.041e-05,2]
[355632459,1741414274825,-1331.77,9.041e-05,2]
[355632460,1741414274840,-1043.6,9.041e-05,2]
[355632461,1741414274855,-717.47,9.041e-05,2]
[355632462,1741414274871,-500.0,9.041e-05,2]
[355632463,1741414274887,-500.0,9.041e-05,2]
[355632464,1741414274903,-2429.37,9.041e-05,2]
[355632465,1741414274918,-500.0,9.041e-05,2]
[355632466,1741414274934,-1449.26,9.041e-05,2]
[355632467,1741414274950,-500.0,9.041e-05,2]
[355632468,1741414274966,-500.0,9.041e-05,2]
[355632469,1741414274982,-500.0,9.041e-05,2]
[355632470,1741414275000,-2102.44,9.041e-05,2]
[355632471,1741414275016,-500.0,9.041e-05,2]
[355632472,1741414275032,-500.0,9.041e-05,2]
[355632473,1741414275048,-2333.22,9.041e-05,2]
[355632474,1741414275065,-500.0,9.041e-05,2]
[355632475,1741414275081,-500.0,9.041e-05,2]
[355632476,1741414275096,-500.0,9.041e-05,2]
[355632477,1741414275112,-500.0,9.041e-05,2]
[355632478,1741414275128,-500.0,9.041e-05,2]
[355632479,1741414275144,-2454.8,9.041e-05,2]
[355632480,1741414275160,-1050.62,9.041e-05,2]
[355632481,1741414275177,-1360.65,9.041e-05,2]
[355632482,1741414275193,-500.0,9.041e-05,2]
[355632483,1741414275208,-1519.79,9.041e-05,2]
[355632484,1741414275224,-1283.45,9.041e-05,2]
[355632485,1741414275239,-1543.84,9.041e-05,2]
[355632486,1741414275255,-500.0,9.041e-05,2]
[355632487,1741414275271,-510.96246624,9.041e-05,2]
[355632488,1741414275290,-2009.04,9.041e-05,2]
[355632489,1741414275306,-2300.56,9.041e-05,2]
[355632490,1741414275322,-500.0,9.041e-05,2]
[355632491,1741414275337,-500.0,9.041e-05,2]
[355632492,1741414275352,-1663.91,9.041e-05,2]
[355632493,1741414275367,-1272.34,9.041e-05,2]
[355632494,1741414275380,-1026.69,9.041e-05,2]
[355632495,1741414275395,-500.0,9.041e-05,2]
[355632496,1741414275411,-500.0,9.041e-05,2]
[355632497,1741414275426,-560.0,9.041e-05,2]
[355632498,1741414275442,-665.48,9.041e-05,2]
[355632499,1741414275455,-1220.21,9.041e-05,2]
[355632500,1741414275465,-1245.09,9.041e-05,2]
[355632501,1741414275475,-965.83,9.041e-05,2]
[355632502,1741414275484,-1729.38,9.041e-05,2]
[355632503,1741414275493,-500.0,9.041e-05,2]
[355632504,1741414275503,-1174.55,9.041e-05,2]
[355632505,1741414275512,-843.55,9.041e-05,2]
[355632506,1741414275522,-1130.08,9.041e-05,2]
[355632507,1741414275531,-494.34114148,9.041e-05,2]
[355632508,1741414275540,-500.0,9.041e-05,2]
[355632509,1741414275549,-500.0,9.041e-05,2]
[355632510,1741414275558,-961.68,9.041e-05,2]
[355632511,1741414275567,-500.0,9.041e-05,2]
[355632512,1741414275577,-1044.38,9.041e-05,2]
[355632513,1741414275586,-2466.34,9.041e-05,2]
[355632514,1741414275595,-2151.46,9.041e-05,2]
[355632515,1741414275604,-1333.37,9.041e-05,2]
[355632516,1741414275614,-1191.23,9.041e-05,2]
[355632517,1741414275623,-1240.21,9.041e-05,2]
[355632518,1741414275632,-500.0,9.041e-05,2]
[355632519,1741414275639,-1022.36,9.041e-05,2]
[355632520,1741414275994,-1665.37,9.041e-05,2]
[355632521,1741414276016,-1576.6,9.041e-05,2]
[355632522,1741414276026,-973.73,9.041e-05,2]
[355632523,1741414276036,-500.0,9.041e-05,2]
[355632524,1741414276046,-500.0,9.041e-05,2]
[355632525,1741414276055,-1132.24,9.041e-05,2]
[355632526,1741414276065,-545.78331167,9.041e-05,2]
[355632527,1741414276075,-1060.76,9.041e-05,2]
[355632528,1741414276086,-1370.45,9.041e-05,2]
[355632529,1741414276097,-1782.48,9.041e-05,2]
[355632530,1741414276107,-500.0,9.041e-05,2]
[355632531,1741414276118,-500.0,9.041e-05,2]
[355632532,1741414276127,-1259.32,9.041e-05,2]
[355632533,1741414276137,-500.0,9.041e-05,2]
[355632534,1741414276147,-2541.64,9.041e-05,2]
[355632535,1741414276158,-777.41,9.041e-05,2]
[355632536,1741414276168,-1329.76,9.041e-05,2]
[355632537,1741414276177,-1101.59,9.041e-05,2]
[355632538,1741414276186,-983.05,9.041e-05,2]
[355632539,1741414276196,-500.0,9.041e-05,2]
[355632540,1741414276207,-668.67,9.041e-05,2]
[355632541,1741414276216,-500.0,9.041e-05,2]
[355632542,1741414276227,-500.0,9.041e-05,2]
[355632543,1741414276237,-1765.57,9.041e-05,2]
[355632544,1741414276246,-2291.28,9.041e-05,2]
[355632545,1741414276256,-1009.19,9.041e-05,2]
[355632546,1741414276266,-500.0,9.041e-05,2]
[355632547,1741414276276,-677.0,9.041e-05,2]
[355632548,1741414276285,-500.0,9.041e-05,2]
[355632549,1741414276295,-2477.16,9.041e-05,2]
[355632550,1741414276305,-1404.42,9.041e-05,2]
[355632551,1741414276315,-814.79,9.041e-05,2]
[355632552,1741414276324,-1300.81,9.041e-05,2]
[355632553,1741414276334,-500.0,9.041e-05,2]
[355632554,1741414276344,-500.0,9.041e-05,2]
[355632555,1741414276353,-500.0,9.041e-05,2]
[355632556,1741414276363,-907.34,9.041e-05,2]
[355632557,1741414276372,-1307.72,9.041e-05,2]
[355632558,1741414276382,-1878.26,9.041e-05,2]
[355632559,1741414276392,-616.73,9.041e-05,2]
[355632560,1741414276403,-530.84201379,9.041e-05,2]
[355632561,1741414276414,-2048.8,9.041e-05,2]
[355632562,1741414276424,-500.0,9.041e-05,2]
[355632563,1741414276434,-500.0,9.041e-05,2]
[355632564,1741414276444,-500.0,9.041e-05,2]
[355632565,1741414276455,-1719.6,9.041e-05,2]
[355632566,1741414276466,-500.0,9.041e-05,2]
[355632567,1741414276477,-1977.78,9.041e-05,2]
[355632568,1741414276487,-1762.89,9.041e-05,2]
[355632569,1741414276498,-549.57841085,9.041e-05,2]
[355632570,1741414276508,-849.49,9.041e-05,2]
[355632571,1741414276518,-557.57,9.041e-05,2]
[355632572,1741414276528,-500.0,9.041e-05,2]
[355632573,1741414276538,-500.0,9.041e-05,2]
[355632574,1741414276547,-500.0,9.041e-05,2]
[355632575,1741414276558,-1263.39,9.041e-05,2]
[355632576,1741414276569,-500.0,9.041e-05,2]
[355632577,1741414276580,-500.0,9.041e-05,2]
[355632578,1741414276590,-1584.36,9.041e-05,2]
[355632579,1741414276600,-811.94,9.041e-05,2]
[355632580,1741414276610,-1487.59,9.041e-05,2]
[355632581,1741414276621,-507.53,9.041e-05,2]
[355632582,1741414276631,-500.0,9.041e-05,2]
[355632583,1741414276642,-500.0,9.041e-05,2]
[355632584,1741414276655,-500.0,9.041e-05,2]
[355632585,1741414276665,-500.0,9.041e-05,2]
[355632586,1741414276675,-832.98,9.041e-05,2]
[355632587,1741414276684,-1220.41,9.041e-05,2]
[355632588,1741414276694,-500.0,9.041e-05,2]
[355632589,1741414276704,-500.0,9.041e-05,2]
[355632590,1741414276714,-500.0,9.041e-05,2]
[355632591,1741414276726,-500.0,9.041e-05,2]
[355632592,1741414276737,-2386.34,9.041e-05,2]
[355632593,1741414276746,-500.0,9.041e-05,2]
[355632594,1741414276755,-500.0,9.041e-05,2]
[355632595,1741414276765,-500.0,9.041e-05,2]
[355632596,1741414276775,-500.0,9.041e-05,2]
[355632597,1741414276784,-642.99,9.041e-05,2]
[355632598,1741414276794,-500.0,9.041e-05,2]
[355632599,1741414276804,-1598.77,9.041e-05,2]
[355632600,1741414276814,-500.0,9.041e-05,2]
[355632601,1741414276823,-500.0,9.041e-05,2]
[355632602,1741414276833,-1159.55,9.041e-05,2]
[355632603,1741414276842,-2772.82,9.041e-05,2]
[355632604,1741414276852,-500.0,9.041e-05,2]
[355632605,1741414276862,-500.0,9.041e-05,2]
[355632606,1741414276871,-500.0,9.041e-05,2]
[355632607,1741414276880,-500.0,9.041e-05,2]
[355632608,1741414276889,-500.0,9.041e-05,2]
[355632609,1741414276899,-513.6,9.041e-05,2]
[355632610,1741414276909,-2172.71,9.041e-05,2]
[355632611,1741414276919,-500.0,9.041e-05,2]
[355632612,1741414276928,-1268.96,9.041e-05,2]
[355632613,1741414276938,-674.93,9.041e-05,2]
[355632614,1741414276947,-500.0,9.041e-05,2]
[355632615,1741414276957,-1215.2,9.041e-05,2]
[355632616,1741414276966,-500.0,9.041e-05,2]
[355632617,1741414276975,-500.0,9.041e-05,2]
[355632618,1741414276984,-3496.89,9.041e-05,2]
[355632619,1741414276995,-500.0,9.041e-05,2]
[355632620,1741414277004,-585.73143381,9.041e-05,2]
[355632621,1741414277015,-2385.26,9.041e-05,2]
[355632622,1741414277025,-822.37,9.041e-05,2]
[355632623,1741414277035,-500.0,9.041e-05,2]
[355632624,1741414277044,-500.0,9.041e-05,2]
[355632625,1741414277053,-500.0,9.041e-05,2]
[355632626,1741414277063,-1264.31,9.041e-05,2]
[355632627,1741414277072,-500.0,9.041e-05,2]
[355632628,1741414277081,-2050.15,9.041e-05,2]
[355632629,1741414277091,-1007.97,9.041e-05,2]
[355632630,1741414277100,-701.25,9.041e-05,2]
[355632631,1741414277109,-500.0,9.041e-05,2]
[355632632,1741414277119,-1407.29,9.041e-05,2]
[355632633,1741414277128,-500.0,9.041e-05,2]
[355632634,1741414277139,-2569.71,9.041e-05,2]
[355632635,1741414277149,-500.0,9.041e-05,2]
[355632636,1741414277158,-2158.13,9.041e-05,2]
[355632637,1741414277169,-523.71314159,9.041e-05,2]
[355632638,1741414277180,-571.61519276,9.041e-05,2]
[355632639,1741414277189,-427.25129219,9.041e-05,2]
[355632640,1741414277200,-941.34,9.041e-05,2]
[355632641,1741414277209,-1336.82,9.041e-05,2]
[355632642,1741414277219,-646.4,9.041e-05,2]
[355632643,1741414277228,-500.0,9.041e-05,2]
[355632644,1741414277238,-2788.41,9.041e-05,2]
[355632645,1741414277247,-500.0,9.041e-05,2]
[355632646,1741414277258,-500.0,9.041e-05,2]
[355632647,1741414277268,-1283.83,9.041e-05,2]
[355632648,1741414277277,-1741.13,9.041e-05,2]
[355632649,1741414277288,-1841.26,9.041e-05,2]
[355632650,1741414277299,-1569.39,9.041e-05,2]
[355632651,1741414277310,-500.0,9.041e-05,2]
[355632652,1741414277319,-686.2,9.041e-05,2]
[355632653,1741414277329,-520.95437057,9.041e-05,2]
[355632654,1741414277339,-500.0,9.041e-05,2]
[355632655,1741414277349,-500.0,9.041e-05,2]
[355632656,1741414277359,-500.0,9.041e-05,2]
[355632657,1741414277368,-500.0,9.041e-05,2]
[355632658,1741414277377,-500.0,9.041e-05,2]
[355632659,1741414277387,-1128.32,9.041e-05,2]
[355632660,1741414277396,-500.0,9.041e-05,2]
[355632661,1741414277408,-2217.55,9.041e-05,2]
[355632662,1741414277417,-500.0,9.041e-05,2]
[355632663,1741414277426,-2378.36,9.041e-05,2]
[355632664,1741414277436,-500.0,9.041e-05,2]
[355632665,1741414277446,-500.0,9.041e-05,2]
[355632666,1741414277455,-1009.83,9.041e-05,2]
[355632667,1741414277465,-1172.55,9.041e-05,2]
[355632668,1741414277475,-500.0,9.041e-05,2]
[355632669,1741414277485,-500.0,9.041e-05,2]
[355632670,1741414277495,-395.98352416,9.041e-05,2]
[355632671,1741414277504,-1110.53,9.041e-05,2]
[355632672,1741414277514,-1040.26,9.041e-05,2]
[355632673,1741414277523,-500.0,9.041e-05,2]
[355632674,1741414277533,-847.65,9.041e-05,2]
[355632675,1741414277543,-500.0,9.041e-05,2]
[355632676,1741414277552,-500.0,9.041e-05,2]
[355632677,1741414277562,-500.0,9.041e-05,2]
[355632678,1741414277572,-2613.51,9.041e-05,2]
[355632679,1741414277583,-500.0,9.041e-05,2]
[355632680,1741414277592,-500.0,9.041e-05,2]
[355632681,1741414277602,-1751.78,9.041e-05,2]
[355632682,1741414277612,-500.0,9.041e-05,2]
[355632683,1741414277621,-500.0,9.041e-05,2]
[355632684,1741414277631,-2798.41,9.041e-05,2]
[355632685,1741414277641,-1605.48,9.041e-05,2]
[355632686,1741414277654,-500.0,9.041e-05,2]
[355632687,1741414277663,-1496.26,9.041e-05,2]
[355632688,1741414277672,-1885.18,9.041e-05,2]
[355632689,1741414277682,-3133.6,9.041e-05,2]
[355632690,1741414277691,-1493.06,9.041e-05,2]
[355632691,1741414277701,-513.44,9.041e-05,2]
[355632692,1741414277711,-500.0,9.041e-05,2]
[355632693,1741414277720,-873.27,9.041e-05,2]
[355632694,1741414277735,-500.0,9.041e-05,2]
[355632695,1741414277745,-1081.85,9.041e-05,2]
[355632696,1741414277755,-526.88,9.041e-05,2]
[355632697,1741414277765,-500.0,9.041e-05,2]
[355632698,1741414277775,-500.0,9.041e-05,2]
[355632699,1741414277784,-500.0,9.041e-05,2]
[355632700,1741414277794,-1061.06,9.041e-05,2]
[355632701,1741414277805,-994.87,9.041e-05,2]
[355632702,1741414277814,-500.0,9.041e-05,2]
[355632703,1741414277824,-2492.44,9.041e-05,2]
[355632704,1741414277833,-528.82345386,9.041e-05,2]
[355632705,1741414277842,-500.0,9.041e-05,2]
[355632706,1741414277852,-1007.54,9.041e-05,2]
[355632707,1741414277862,-1046.86,9.041e-05,2]
[355632708,1741414277871,-1352.43,9.041e-05,2]
[355632709,1741414277880,-856.39,9.041e-05,2]
[355632710,1741414277891,-500.0,9.041e-05,2]
[355632711,1741414277901,-500.0,9.041e-05,2]
[355632712,1741414277911,-500.0,9.041e-05,2]
[355632713,1741414277921,-500.0,9.041e-05,2]
[355632714,1741414277931,-1894.22,9.041e-05,2]
[355632715,1741414277941,-517.29796558,9.041e-05,2]
[355632716,1741414277950,-630.73104042,9.041e-05,2]
[355632717,1741414278449,-1040.09125342,8.493e-05,2]
[355632718,1741414710191,1121.002,8.055e-05,2]
[355632719,1741414710268,185.627,8.055e-05,2]
[355632720,1741414887321,157.63,8.06e-05,2]
[355632721,1741415118237,725.5,7.703e-05,2]
[355632755,1741415437484,-2841.8276,8.09e-05,2]
[355632756,1741415437495,-545.5931,8.09e-05,2]
[355632757,1741415437504,-157.63,8.12e-05,2]
[355632758,1741415437514,-150.0,8.168e-05,2]
[355632759,1741415437524,-155.38726558,8.168e-05,2]
[355632760,1741415437598,-394.61273442,8.168e-05,2]
[355632761,1741415437607,-157.63,8.181e-05,2]
[355632762,1741415437617,-300.0,8.188e-05,2]
[355632763,1741415437626,-166.61569943,8.189e-05,2]
[355632764,1741415437636,-500.0,8.189e-05,2]
[355632765,1741415437646,-229.60984009,8.189e-05,2]
[355632766,1741415437655,-500.0,8.189e-05,2]
[355632767,1741415437664,-500.0,8.189e-05,2]
[355632768,1741415437674,-500.0,8.189e-05,2]
[355632769,1741415437684,-5929.59987306,8.19e-05,2]
[355632941,1741415440011,-442.87999995,8.19e-05,2]
[355632950,1741415440109,-312.58155246,8.19e-05,2]
[355633172,1741415442764,-433884.82806135,8.19e-05,2]
[355633173,1741415442774,-550.0,8.199e-05,2]
[355633174,1741415442784,-517.65173091,8.219e-05,2]
[355633175,1741415442793,-502.93531676,8.219e-05,2]
[355633176,1741415442803,-505.11317336,8.219e-05,2]
[355633177,1741415442812,-503.72863858,8.219e-05,2]
[355633178,1741415442822,-359.551272,8.219e-05,2]
[355633179,1741415442832,-510.12209173,8.219e-05,2]
[355633180,1741415442841,-500.0,8.219e-05,2]
[355633181,1741415442851,-500.0,8.219e-05,2]
[355633182,1741415442860,-500.0,8.219e-05,2]
[355633183,1741415442869,-220.905378,8.219e-05,2]
[355633184,1741415442879,-500.0,8.219e-05,2]
[355633185,1741415442888,-500.0,8.219e-05,2]
[355633186,1741415442898,-896.35,8.219e-05,2]
[355633187,1741415442907,-500.0,8.219e-05,2]
[355633188,1741415442917,-722.9,8.219e-05,2]
[355633189,1741415442926,-1231.77,8.219e-05,2]
[355633190,1741415442935,-503.1738747,8.219e-05,2]
[355633191,1741415442945,-872.8,8.219e-05,2]
[355633192,1741415442954,-513.71113514,8.219e-05,2]
[355633193,1741415442963,-500.0,8.219e-05,2]
[355633194,1741415442973,-500.0,8.219e-05,2]
[355633195,1741415442983,-500.0,8.219e-05,2]
[355633196,1741415442992,-500.0,8.219e-05,2]
[355633197,1741415443002,-500.0,8.219e-05,2]
[355633198,1741415443012,-1492.14,8.219e-05,2]
[355633199,1741415443022,-500.0,8.219e-05,2]
[355633200,1741415443031,-1176.18,8.219e-05,2]
[355633201,1741415443041,-500.0,8.219e-05,2]
[355633203,1741415443051,-500.0,8.219e-05,2]
[355633204,1741415443061,-870.31,8.219e-05,2]
[355633205,1741415443070,-822.23,8.219e-05,2]
[355633206,1741415443080,-396.51295481,8.219e-05,2]
[355633207,1741415443089,-500.0,8.219e-05,2]
[355633208,1741415443098,-951.0,8.219e-05,2]
[355633209,1741415443107,-500.0,8.219e-05,2]
[355633210,1741415443118,-1396.19,8.219e-05,2]
[355633211,1741415443131,-500.0,8.219e-05,2]
[355633212,1741415443141,-500.0,8.219e-05,2]
[355633213,1741415443151,-999.63,8.219e-05,2]
[355633214,1741415443160,-500.0,8.219e-05,2]
[355633215,1741415443171,-500.0,8.219e-05,2]
[355633216,1741415443181,-500.0,8.219e-05,2]
[355633217,1741415443190,-500.0,8.219e-05,2]
[355633218,1741415443199,-500.0,8.219e-05,2]
[355633219,1741415443209,-334.25284368,8.219e-05,2]
[355633220,1741415443218,-810.48,8.219e-05,2]
[355633221,1741415443227,-580.22,8.219e-05,2]
[355633222,1741415443236,-500.0,8.219e-05,2]
[355633223,1741415443245,-500.0,8.219e-05,2]
[355633224,1741415443255,-500.0,8.219e-05,2]
[355633225,1741415443264,-500.0,8.219e-05,2]
[355633226,1741415443273,-500.0,8.219e-05,2]
[355633227,1741415443282,-631.90344136,8.219e-05,2]
[355633228,1741415443291,-542.72292765,8.219e-05,2]
[355633229,1741415443301,-500.0,8.219e-05,2]
[355633230,1741415443311,-1128.97,8.219e-05,2]
[355633231,1741415443321,-728.74,8.219e-05,2]
[355633232,1741415443330,-500.0,8.219e-05,2]
[355633233,1741415443341,-500.0,8.219e-05,2]
[355633234,1741415443352,-500.0,8.219e-05,2]
[355633235,1741415443362,-840.04,8.219e-05,2]
[355633236,1741415443372,-500.0,8.219e-05,2]
[355633237,1741415443382,-1260.5,8.219e-05,2]
[355633238,1741415443393,-1191.18,8.219e-05,2]
[355633239,1741415443402,-500.0,8.219e-05,2]
[355633240,1741415443411,-500.0,8.219e-05,2]
[355633241,1741415443421,-500.0,8.219e-05,2]
[355633242,1741415443431,-500.0,8.219e-05,2]
[355633243,1741415443441,-500.0,8.219e-05,2]
[355633244,1741415443450,-1104.84,8.219e-05,2]
[355633245,1741415443459,-556.66,8.219e-05,2]
[355633246,1741415443469,-500.0,8.219e-05,2]
[355633247,1741415443478,-500.0,8.219e-05,2]
[355633248,1741415443489,-500.0,8.219e-05,2]
[355633249,1741415443499,-404.49687449,8.219e-05,2]
[355633250,1741415443508,-500.0,8.219e-05,2]
[355633251,1741415443518,-500.0,8.219e-05,2]
[355633252,1741415443527,-500.0,8.219e-05,2]
[355633253,1741415443537,-500.0,8.219e-05,2]
[355633254,1741415443547,-518.2130902,8.219e-05,2]
[355633255,1741415443556,-500.0,8.219e-05,2]
[355633256,1741415443567,-500.0,8.219e-05,2]
[355633257,1741415443576,-500.0,8.219e-05,2]
[355633258,1741415443586,-500.0,8.219e-05,2]
[355633259,1741415443595,-500.0,8.219e-05,2]
[355633260,1741415443604,-500.0,8.219e-05,2]
[355633261,1741415443614,-546.75934917,8.219e-05,2]
[355633262,1741415443623,-500.0,8.219e-05,2]
[355633263,1741415443633,-706.14,8.219e-05,2]
[355633264,1741415443642,-500.0,8.219e-05,2]
[355633265,1741415443652,-150.70115948,8.219e-05,2]
[355633266,1741415443662,-500.0,8.219e-05,2]
[355633267,1741415443671,-500.0,8.219e-05,2]
[355633268,1741415443680,-500.0,8.219e-05,2]
[355633269,1741415443690,-637.26,8.219e-05,2]
[355633270,1741415443699,-500.0,8.219e-05,2]
[355633271,1741415443709,-500.0,8.219e-05,2]
[355633272,1741415443719,-500.0,8.219e-05,2]
[355633273,1741415443728,-1134.85,8.219e-05,2]
[355633274,1741415443737,-727.21,8.219e-05,2]
[355633275,1741415443747,-1090.69,8.219e-05,2]
[355633276,1741415443757,-500.0,8.219e-05,2]
[355633277,1741415443767,-500.0,8.219e-05,2]
[355633278,1741415443778,-500.0,8.219e-05,2]
[355633279,1741415443788,-583.27,8.219e-05,2]
[355633280,1741415443799,-1358.73,8.219e-05,2]
[355633281,1741415443808,-500.0,8.219e-05,2]
[355633282,1741415443819,-500.0,8.219e-05,2]
[355633283,1741415443829,-500.0,8.219e-05,2]
[355633284,1741415443839,-500.0,8.219e-05,2]
[355633285,1741415443849,-500.0,8.219e-05,2]
[355633286,1741415443859,-500.0,8.219e-05,2]
[355633287,1741415443869,-500.0,8.219e-05,2]
[355633288,1741415443879,-500.0,8.219e-05,2]
[355633289,1741415443888,-500.0,8.219e-05,2]
[355633290,1741415443898,-500.0,8.219e-05,2]
[355633291,1741415443907,-500.0,8.219e-05,2]
[355633292,1741415443920,-605.21,8.219e-05,2]
[355633293,1741415443931,-500.0,8.219e-05,2]
[355633294,1741415443940,-500.0,8.219e-05,2]
[355633295,1741415443949,-500.0,8.219e-05,2]
[355633296,1741415443959,-500.0,8.219e-05,2]
[355633297,1741415443968,-335.9111875,8.219e-05,2]
[355633298,1741415443977,-500.0,8.219e-05,2]
[355633299,1741415443986,-748.56,8.219e-05,2]
[355633300,1741415443995,-500.0,8.219e-05,2]
[355633301,1741415444005,-500.0,8.219e-05,2]
[355633302,1741415444014,-805.28,8.219e-05,2]
[355633303,1741415444023,-500.0,8.219e-05,2]
[355633304,1741415444032,-500.0,8.219e-05,2]
[355633305,1741415444042,-849.9,8.219e-05,2]
[355633306,1741415444051,-500.0,8.219e-05,2]
[355633307,1741415444061,-500.0,8.219e-05,2]
[355633308,1741415444070,-500.0,8.219e-05,2]
[355633309,1741415444079,-738.1,8.219e-05,2]
[355633310,1741415444088,-500.0,8.219e-05,2]
[355633311,1741415444098,-500.0,8.219e-05,2]
[355633312,1741415444107,-866.1,8.219e-05,2]
[355633313,1741415444117,-505.26,8.219e-05,2]
[355633314,1741415444130,-500.0,8.219e-05,2]
[355633315,1741415444139,-500.0,8.219e-05,2]
[355633316,1741415444149,-500.0,8.219e-05,2]
[355633317,1741415444159,-500.0,8.219e-05,2]
[355633318,1741415444168,-500.0,8.219e-05,2]
[355633319,1741415444177,-507.24731131,8.219e-05,2]
[355633320,1741415444187,-500.0,8.219e-05,2]
[355633321,1741415444197,-500.0,8.219e-05,2]
[355633322,1741415444207,-1594.4,8.219e-05,2]
[355633323,1741415444217,-512.41994964,8.219e-05,2]
[355633324,1741415444226,-500.0,8.219e-05,2]
[355633325,1741415444236,-500.0,8.219e-05,2]
[355633326,1741415444245,-236.53922983,8.219e-05,2]
[355633327,1741415444254,-500.0,8.219e-05,2]
[355633328,1741415444264,-500.0,8.219e-05,2]
[355633329,1741415444273,-500.0,8.219e-05,2]
[355633330,1741415444282,-500.0,8.219e-05,2]
[355633331,1741415444292,-2360.29,8.219e-05,2]
[355633332,1741415444302,-500.0,8.219e-05,2]
[355633333,1741415444311,-500.0,8.219e-05,2]
[355633334,1741415444320,-500.0,8.219e-05,2]
[355633335,1741415444329,-500.0,8.219e-05,2]
[355633336,1741415444339,-503.17013428,8.219e-05,2]
[355633337,1741415444348,-874.32,8.219e-05,2]
[355633338,1741415444358,-500.0,8.219e-05,2]
[355633339,1741415444367,-537.2411071,8.219e-05,2]
[355633340,1741415444377,-2019.32,8.219e-05,2]
[355633341,1741415444386,-905.05,8.219e-05,2]
[355633342,1741415444397,-379.6319748,8.219e-05,2]
[355633343,1741415444407,-462.22089609,8.219e-05,2]
[355633344,1741415444419,-500.0,8.219e-05,2]
[355633345,1741415444430,-449.61247531,8.219e-05,2]
[355633346,1741415444441,-500.0,8.219e-05,2]
[355633347,1741415444452,-500.0,8.219e-05,2]
[355633348,1741415444462,-500.0,8.219e-05,2]
[355633349,1741415444473,-500.0,8.219e-05,2]
[355633350,1741415444483,-500.0,8.219e-05,2]
[355633351,1741415444493,-1420.01,8.219e-05,2]
[355633352,1741415444503,-1478.89,8.219e-05,2]
[355633353,1741415444512,-503.27184417,8.219e-05,2]
[355633354,1741415444521,-500.0,8.219e-05,2]
[355633355,1741415444530,-1032.39,8.219e-05,2]
[355633356,1741415444540,-500.0,8.219e-05,2]
[355633357,1741415444549,-500.0,8.219e-05,2]
[355633358,1741415444558,-498.6232038,8.219e-05,2]
[355633359,1741415444568,-974.54,8.219e-05,2]
[355633360,1741415444577,-220.33025669,8.219e-05,2]
[355633361,1741415444587,-500.0,8.219e-05,2]
[355633362,1741415444596,-500.0,8.219e-05,2]
[355633363,1741415444606,-500.0,8.219e-05,2]
[355633364,1741415444616,-461.20389382,8.219e-05,2]
[355633365,1741415444625,-500.0,8.219e-05,2]
[355633366,1741415444635,-500.0,8.219e-05,2]
[355633367,1741415444645,-500.0,8.219e-05,2]
[355633368,1741415444655,-1371.19,8.219e-05,2]
[355633369,1741415444664,-500.0,8.219e-05,2]
[355633370,1741415444674,-500.0,8.219e-05,2]
[355633371,1741415444684,-1446.33,8.219e-05,2]
[355633372,1741415444694,-505.87,8.219e-05,2]
[355633373,1741415444704,-1772.86,8.219e-05,2]
[355633374,1741415444713,-500.0,8.219e-05,2]
[355633375,1741415444723,-500.0,8.219e-05,2]
[355633376,1741415444734,-1130.64,8.219e-05,2]